bitfinex/quotes_ETHUSD_20230903
["timestamp","ask_amount","ask_price","bid_price","bid_amount"]
[1693723484702,3.56185404,1639.1,1639.0,2.23831657]
[1693723485270,3.56185404,1639.1,1639.0,2.24552104]
[1693723497527,3.56185404,1639.1,1639.0,3.52374012]
[1693723500285,3.56185404,1639.1,1639.0,2.24552104]
[1693723500630,3.56185404,1639.1,1639.0,3.52374012]
[1693723500931,3.56185404,1639.1,1639.0,2.24552104]
[1693723507834,3.56185404,1639.1,1639.0,3.52374012]
[1693723531667,5.93610225,1639.1,1639.0,2.24552104]
[1693723531872,5.93610225,1639.1,1639.0,1.28683985]
[1693723532168,5.93610225,1639.1,1639.0,0.00720447]
[1693723532469,5.93610225,1639.1,1638.9,0.95868119]
[1693723532690,2.63261023,1639.0,1638.8,2.23690027]
[1693723532851,3.08185404,1638.9,1638.8,2.23690027]
[1693723533033,3.56185404,1638.9,1638.8,2.23690027]
[1693723533398,3.56185404,1638.9,1638.8,3.77716469]
[1693723535578,3.56185404,1638.9,1638.8,2.49894561]
[1693723547451,3.56185404,1638.9,1638.8,1.54026442]
[1693723557124,3.56185404,1638.9,1638.8,2.49894561]
[1693723562764,3.56185404,1638.9,1638.8,1.54026442]
[1693723562907,3.56185404,1638.9,1638.8,2.49894561]
[1693723563107,3.56185404,1638.9,1638.8,1.54026442]
[1693723563655,3.56185404,1638.9,1638.8,2.49894561]
[1693723566253,4.50200944,1638.9,1638.8,1.54026442]
[1693723566425,4.50200944,1638.9,1638.8,2.49894561]
[1693723566958,4.50200944,1638.9,1638.8,1.54026442]
[1693723567359,4.50200944,1638.9,1638.8,2.49894561]
[1693723568821,3.56185404,1638.9,1638.8,2.49894561]
[1693723577356,3.56185404,1638.9,1638.8,3.77716469]
[1693723581468,3.56185404,1638.9,1638.8,2.8184835]
[1693723596903,3.56185404,1638.9,1638.8,3.77813451]
[1693723598605,8.12085404,1638.9,1638.8,3.77813451]
[1693723598930,12.36100944,1638.9,1638.8,0.01130481]
[1693723599403,13.94870944,1638.9,1638.4,2.23787009]
[1693723599707,7.623,1638.8,1638.4,2.23787009]
[1693723599906,3.08185404,1638.7,1638.4,0.95965101]
[1693723600081,0.48,1638.6,1638.4,0.95965101]
[1693723600406,5.12085404,1638.6,1638.5,1.71591422]
[1693723600607,7.67615404,1638.6,1638.5,2.67556523]
[1693723600807,7.67615404,1638.6,1638.5,1.71591422]
[1693723601008,8.70958798,1638.6,1638.5,1.71591422]
[1693723604692,8.70958798,1638.6,1638.5,0.01046902]
[1693723605407,8.70958798,1638.6,1638.3,2.59085101]
[1693723605606,4.64085404,1638.5,1638.3,2.59085101]
[1693723605809,4.64085404,1638.5,1638.4,1.70550452]
[1693723606113,4.64085404,1638.5,1638.3,0.95965101]
[1693723606114,5.12085404,1638.5,1638.3,0.95965101]
[1693723606405,4.64085404,1638.5,1638.4,0.01047998]
[1693723606587,5.12085404,1638.5,1638.4,1.7159845]
[1693723614538,5.99181284,1638.5,1638.4,1.7159845]
[1693723614705,10.55081284,1638.5,1638.4,1.7159845]
[1693723614898,10.55081284,1638.5,1638.4,0.01047998]
[1693723615536,3.0,1638.4,1638.1,1.05965101]
[1693723615737,1.559,1638.2,1638.1,1.05965101]
[1693723615935,4.64085404,1638.2,1638.1,1.05965101]
[1693723616139,5.12085404,1638.2,1638.1,2.33787009]
[1693723616431,5.12085404,1638.2,1638.1,4.05393622]
[1693723616646,5.12085404,1638.2,1638.1,3.09428521]
[1693723618243,5.12085404,1638.2,1638.1,4.69205906]
[1693723619262,5.12085404,1638.2,1638.1,3.41383998]
[1693723624238,5.12085404,1638.2,1638.1,1.81606613]
[1693723627165,5.12085404,1638.2,1638.1,3.73339475]
[1693723634182,5.12085404,1638.2,1638.1,1.81606613]
[1693723640073,4.1323,1638.4,1638.1,4.05294952]
[1693723640371,4.64085404,1638.4,1638.3,1.91421059]
[1693723640585,8.12085404,1638.4,1638.3,1.91421059]
[1693723640754,7.64085404,1638.4,1638.3,1.91421059]
[1693723642185,8.12085404,1638.4,1638.3,1.91421059]
[1693723647085,8.12085404,1638.4,1638.2,1.91421059]
[1693723647894,8.12085404,1638.4,1638.3,1.59784926]
[1693723650409,8.12085404,1638.4,1638.3,2.87637337]
[1693723651182,8.12085404,1638.4,1638.3,1.27852411]
[1693723653181,8.12085404,1638.4,1638.3,0.9591761]
[1693723655214,8.12085404,1638.4,1638.2,0.9591761]
[1693723655416,0.48,1638.3,1638.2,0.9591761]
[1693723657113,3.56185404,1638.3,1638.1,1.0591761]
[1693723657313,3.08185404,1638.2,1638.1,1.0591761]
[1693723657514,3.56185404,1638.2,1638.1,1.0591761]
[1693723657818,3.56185404,1638.2,1638.1,2.8309916]
[1693723658414,3.56185404,1638.2,1638.1,2.84108967]
[1693723659238,5.12085404,1638.2,1638.1,4.11961378]
[1693723659525,5.12085404,1638.2,1638.1,2.84108967]
[1693723660188,5.12085404,1638.2,1638.1,4.11961378]
[1693723661135,5.12085404,1638.2,1638.1,3.16043768]
[1693723661545,5.12085404,1638.2,1638.1,4.12078928]
[1693723663347,5.12085404,1638.2,1638.1,3.16043768]
[1693723676157,5.12085404,1638.2,1638.1,4.12080821]
[1693723676452,5.12085404,1638.2,1638.1,3.16043768]
[1693723680218,5.12085404,1638.2,1638.1,4.12079376]
[1693723680420,1.559,1638.3,1638.1,5.00265806]
[1693723680632,1.559,1638.3,1638.2,0.96035167]
[1693723725170,1.559,1638.3,1638.2,2.23887578]
[1693723731686,1.459,1638.3,1638.2,2.23887578]
[1693723732096,1.459,1638.3,1638.2,0.96035167]
[1693723732254,1.459,1638.3,1638.2,2.23887578]
[1693723733885,1.459,1638.3,1638.2,0.96035167]
[1693723734182,1.459,1638.3,1638.2,2.23887578]
[1693723735587,1.459,1638.3,1638.2,2.72073471]
[1693723736187,1.459,1638.3,1638.2,0.96035167]
[1693723736888,1.459,1638.3,1638.2,2.23887578]
[1693723737382,1.459,1638.3,1638.2,0.96035167]
[1693723751206,1.459,1638.3,1638.2,0.96085536]
[1693723761812,1.459,1638.3,1638.2,0.96098699]
[1693723763720,4.54085404,1638.3,1638.2,0.96098699]
[1693723763919,5.87571944,1638.3,1638.2,0.96098699]
[1693723764710,5.87571944,1638.3,1638.2,3.96098699]
[1693723765587,5.87571944,1638.3,1638.2,3.0]
[1693723779119,5.02085404,1638.3,1638.2,3.0]
[1693723783146,1.939,1638.3,1638.2,3.0]
[1693723806681,5.02085404,1638.3,1638.2,3.0]
[1693723808105,3.0,1638.2,1638.1,0.1]
[1693723808305,3.0,1638.2,1638.0,0.1]
[1693723808306,13.5554748,1638.2,1638.0,0.1]
[1693723808600,3.48,1638.1,1638.0,0.1]
[1693723808802,6.9491294,1638.1,1638.0,0.1]
[1693723809100,8.60467688,1638.1,1638.0,0.1]
[1693723811787,22.37293688,1638.1,1638.0,0.1]
[1693723812003,4.559,1638.0,1637.9,0.1]
[1693723812200,19.1721294,1638.0,1637.6,0.1]
[1693723812503,1.559,1637.7,1637.6,0.1]
[1693723812669,4.64085404,1637.7,1637.6,0.1]
[1693723812870,5.58493944,1637.7,1637.6,0.1]
[1693723813713,5.58493944,1637.7,1637.6,0.10860216]
[1693723816268,5.58493944,1637.7,1637.6,1.79381675]
[1693723818331,5.58493944,1637.7,1637.6,2.7543611]
[1693723819237,5.12085404,1637.7,1637.6,2.7543611]
[1693723825256,5.12085404,1637.7,1637.6,4.0350869]
[1693723826452,5.61205079,1637.7,1637.6,4.0350869]
[1693723827449,5.61205079,1637.7,1637.6,3.07454255]
[1693723830178,5.61205079,1637.7,1637.6,4.03208725]
[1693723830351,5.61205079,1637.7,1637.6,3.07454255]
[1693723832488,5.61205079,1637.7,1637.6,4.03518324]
[1693723833249,5.61205079,1637.7,1637.6,3.07764313]
[1693723836146,5.61205079,1637.7,1637.6,4.67855038]
[1693723837789,5.61205079,1637.7,1637.6,3.39782458]
[1693723841696,9.33681587,1637.7,1637.6,4.67493044]
[1693723841879,9.33681587,1637.7,1637.6,3.39782458]
[1693723851208,9.33681587,1637.7,1637.6,1.79691733]
[1693723851777,9.33681587,1637.7,1637.6,3.39636137]
[1693723852009,8.61205079,1637.7,1637.6,3.39636137]
[1693723852213,8.61205079,1637.7,1637.6,1.79691733]
[1693723853303,8.61205079,1637.7,1637.6,3.71800603]
[1693723853891,8.61205079,1637.7,1637.6,3.39830287]
[1693723855028,11.37558188,1637.7,1637.6,3.39830287]
[1693723855228,12.97670007,1637.7,1637.6,3.39830287]
[1693723856946,12.97670007,1637.7,1637.6,4.67982893]
[1693723857242,12.97670007,1637.7,1637.6,3.39830287]
[1693723857753,12.97670007,1637.7,1637.6,3.07856382]
[1693723859834,12.97670007,1637.7,1637.6,2.75813136]
[1693723861367,12.97670007,1637.7,1637.5,5.98303203]
[1693723861658,3.0,1637.4,1637.3,0.1]
[1693723861949,11.85529692,1637.4,1637.1,1.38164649]
[1693723862147,3.25344288,1637.3,1637.1,1.38164649]
[1693723862354,3.08185404,1637.2,1637.1,1.38164649]
[1693723862561,7.89429692,1637.2,1637.1,1.38164649]
[1693723864242,7.89429692,1637.2,1637.1,0.1]
[1693723866743,5.12085404,1637.2,1637.1,0.1]
[1693723867969,11.28231172,1637.2,1637.1,0.1]
[1693723868173,5.12085404,1637.2,1637.1,0.1]
[1693723869273,11.28249255,1637.2,1637.1,0.1]
[1693723869423,12.41074181,1637.2,1637.1,0.1]
[1693723870361,11.28249255,1637.2,1637.1,0.1]
[1693723871794,5.12085404,1637.2,1637.1,0.1]
[1693723874994,5.61478987,1637.2,1637.1,0.1]
[1693723877712,5.61478987,1637.2,1637.1,1.05896902]
[1693723882609,17.7767405,1637.2,1637.1,0.1]
[1693723882810,19.93437338,1637.2,1637.1,0.1]
[1693723891156,19.93437338,1637.2,1637.1,1.05896902]
[1693723894727,17.7767405,1637.2,1637.1,1.05896902]
[1693723899278,17.7767405,1637.2,1637.1,2.33759438]
[1693723902195,17.7513705,1637.2,1637.1,2.33759438]
[1693723902391,17.7513705,1637.2,1637.1,1.05896902]
[1693723903398,17.7513705,1637.2,1637.1,2.33759438]
[1693723905211,17.7513705,1637.2,1637.1,1.37862536]
[1693723906078,20.61756104,1637.2,1637.1,1.37862536]
[1693723906386,20.61756104,1637.2,1637.1,2.34013321]
[1693723906783,20.61756104,1637.2,1637.1,2.34351795]
[1693723907369,20.61756104,1637.2,1637.1,1.06150769]
[1693723910314,20.61756104,1637.2,1637.1,0.1]
[1693723913279,20.61756104,1637.2,1637.1,0.07321]
[1693723914118,29.86039594,1637.2,1637.1,0.07321]
[1693723914918,20.61756104,1637.2,1637.1,0.07321]
[1693723945893,21.00481557,1637.2,1637.1,0.07321]
[1693723955693,30.24765047,1637.2,1637.1,0.07321]
[1693723961770,17.7513705,1637.2,1637.1,0.07321]
[1693723961992,26.9942054,1637.2,1637.1,0.07321]
[1693723962199,17.7513705,1637.2,1637.1,0.07321]
[1693723964677,9.7123705,1637.2,1637.1,0.07321]
[1693723964881,9.21843467,1637.2,1637.1,1.03561401]
[1693723965070,6.16195063,1637.2,1637.1,1.03561401]
[1693723965475,6.16195063,1637.2,1637.1,2.17337557]
[1693723965676,6.16195063,1637.2,1637.1,2.57565817]
[1693723965883,3.0,1637.3,1637.1,2.57565817]
[1693723966110,6.16092907,1637.2,1637.1,2.57565817]
[1693723966521,6.16092907,1637.2,1637.1,1.61325416]
[1693723967073,3.0,1637.3,1637.1,1.61325416]
[1693723967312,3.0,1637.3,1637.1,2.57565817]
[1693723967473,3.0,1637.3,1637.1,1.61325416]
[1693723970672,1.559,1637.2,1637.1,1.61325416]
[1693723971803,1.559,1637.2,1637.1,1.21097156]
[1693723999905,7.72019911,1637.2,1637.1,1.21097156]
[1693724003437,7.72027599,1637.2,1637.1,1.21097156]
[1693724016468,7.72027599,1637.2,1637.1,2.17230672]
[1693724016631,7.72027599,1637.2,1637.1,1.21097156]
[1693724030695,7.72027599,1637.2,1637.1,2.17230672]
[1693724040716,7.72027599,1637.2,1637.1,2.52771541]
[1693724040873,6.16127599,1637.2,1637.1,2.52771541]
[1693724043734,6.16127599,1637.2,1637.1,2.17230672]
[1693724050695,7.72027599,1637.2,1637.1,2.17230672]
[1693724050895,8.20027599,1637.2,1637.1,2.17230672]
[1693724051108,8.20027599,1637.2,1637.1,1.21097156]
[1693724052686,8.20027599,1637.2,1637.1,0.08131909]
[1693724052913,8.58753052,1637.2,1637.1,0.08131909]
[1693724053324,12.82813761,1637.2,1637.1,0.08131909]
[1693724053499,12.82813761,1637.2,1637.1,1.16212826]
[1693724053911,12.82813761,1637.2,1637.1,0.08131909]
[1693724054626,12.82813761,1637.2,1637.1,0.07321]
[1693724058521,15.82813761,1637.2,1637.1,0.07321]
[1693724058721,16.69663674,1637.2,1637.1,0.07321]
[1693724059306,25.93924554,1637.2,1637.1,0.07321]
[1693724059725,16.69663674,1637.2,1637.1,0.07321]
[1693724077223,13.80213003,1637.2,1637.1,0.07321]
[1693724080030,14.28213003,1637.2,1637.1,0.07321]
[1693724082673,14.28213003,1637.2,1636.8,0.30084516]
[1693724082883,8.12085404,1637.2,1636.8,0.30084516]
[1693724083841,8.12085404,1637.2,1636.7,3.22178021]
[1693724084043,8.12085404,1637.2,1636.8,0.32217802]
[1693724084355,8.12085404,1637.2,1636.8,1.36252703]
[1693724084742,8.12085404,1637.2,1636.8,0.32217802]
[1693724091678,8.12085404,1637.2,1636.8,1.28283114]
[1693724093350,6.16170701,1637.1,1636.8,1.28283114]
[1693724096966,6.16170701,1637.1,1636.9,1.03730101]
[1693724097294,6.16170701,1637.1,1636.8,1.28283114]
[1693724097586,6.16170701,1637.1,1637.0,0.00736813]
[1693724098496,6.16170701,1637.1,1636.9,0.96065312]
[1693724099084,6.16170701,1637.1,1637.0,1.03665891]
[1693724099392,6.16170701,1637.1,1636.9,0.96065312]
[1693724099688,6.16170701,1637.1,1637.0,1.03665891]
[1693724100084,6.16170701,1637.1,1636.9,0.96065312]
[1693724100459,6.16170701,1637.1,1637.0,1.04402704]
[1693724100659,6.16170701,1637.1,1637.0,0.00736813]
[1693724101574,6.16170701,1637.1,1636.9,0.96065312]
[1693724101773,6.16170701,1637.1,1636.9,1.37075426]
[1693724102161,6.16170701,1637.1,1637.0,1.03614715]
[1693724102494,6.16170701,1637.1,1636.9,1.37075426]
[1693724102898,6.16170701,1637.1,1637.0,1.03614715]
[1693724103197,6.16170701,1637.1,1636.9,1.37075426]
[1693724103573,6.16170701,1637.1,1637.0,1.04300352]
[1693724103774,5.12085404,1637.2,1637.0,1.04300352]
[1693724104093,5.12085404,1637.2,1637.0,0.00736813]
[1693724104500,5.12085404,1637.2,1636.9,1.37075426]
[1693724104895,5.12085404,1637.2,1637.0,1.03563539]
[1693724105301,5.12085404,1637.2,1636.9,1.37075426]
[1693724105667,5.12085404,1637.2,1637.0,1.03512362]
[1693724106072,5.12085404,1637.2,1636.9,0.96065312]
[1693724106302,5.12085404,1637.2,1637.1,1.0349933]
[1693724106604,13.88402622,1637.2,1637.1,1.0349933]
[1693724106902,12.03172622,1637.2,1637.0,0.00736813]
[1693724107105,7.6863368,1637.2,1637.0,0.00736813]
[1693724107477,7.6863368,1637.2,1636.9,0.96065312]
[1693724107683,6.93695404,1637.2,1636.9,0.96065312]
[1693724107883,6.93695404,1637.2,1637.1,1.03448154]
[1693724108089,11.2823225,1637.2,1636.8,2.24243333]
[1693724108272,1.559,1636.9,1636.8,0.96065312]
[1693724108471,1.559,1636.9,1636.7,4.18243333]
[1693724108700,1.559,1636.9,1636.7,2.93089919]
[1693724110306,4.64085404,1636.9,1636.7,2.34243333]
[1693724110604,4.64085404,1636.9,1636.7,1.06065312]
[1693724112707,4.64085404,1636.9,1636.7,1.06129648]
[1693724115608,4.64085404,1636.9,1636.7,2.34302512]
[1693724116611,4.64085404,1636.9,1636.8,1.03282548]
[1693724116799,5.12085404,1636.9,1636.8,1.03282548]
[1693724118538,5.12085404,1636.9,1636.8,1.04021053]
[1693724121442,5.12085404,1636.9,1636.8,2.00150701]
[1693724122398,11.28301333,1636.9,1636.8,2.00150701]
[1693724127551,11.28301333,1636.9,1636.8,1.04021053]
[1693724128046,11.28301333,1636.9,1636.8,2.00150701]
[1693724128246,11.28301333,1636.9,1636.8,1.04021053]
[1693724128436,11.77598846,1636.9,1636.8,1.04021053]
[1693724128964,11.77598846,1636.9,1636.8,2.00150701]
[1693724129449,11.77598846,1636.9,1636.8,1.04021053]
[1693724129819,11.77598846,1636.9,1636.8,2.00150701]
[1693724130463,11.77598846,1636.9,1636.8,1.04021053]
[1693724130760,11.77598846,1636.9,1636.8,2.00150701]
[1693724131726,11.77598846,1636.9,1636.8,1.04021053]
[1693724131925,11.77598846,1636.9,1636.8,2.00150701]
[1693724132462,11.77598846,1636.9,1636.8,1.04021053]
[1693724133262,11.77598846,1636.9,1636.8,2.00150701]
[1693724133429,11.77598846,1636.9,1636.8,1.04021053]
[1693724138860,5.61382917,1636.9,1636.8,1.04021053]
[1693724139067,11.77604094,1636.9,1636.8,1.04021053]
[1693724141671,11.77604094,1636.9,1636.8,2.00150701]
[1693724142377,11.77601223,1636.9,1636.8,2.00150701]
[1693724147876,11.77601223,1636.9,1636.8,2.00213582]
[1693724154389,11.77601223,1636.9,1636.8,3.28470288]
[1693724159221,5.61382917,1636.9,1636.8,3.28470288]
[1693724159425,11.77598824,1636.9,1636.8,3.28470288]
[1693724166304,6.16215907,1636.9,1636.8,3.78349405]
[1693724166832,6.16215907,1636.9,1636.8,2.82156876]
[1693724180333,6.1619108,1636.9,1636.8,2.82156876]
[1693724181351,3.0,1637.0,1636.8,2.82156876]
[1693724181516,3.0,1637.0,1636.9,0.96236164]
[1693724181722,9.16185932,1637.0,1636.9,0.96236164]
[1693724181926,9.16185932,1637.0,1636.9,1.82796116]
[1693724182555,9.16185932,1637.0,1636.9,1.83454086]
[1693724199484,3.0,1637.0,1636.9,2.51633619]
[1693724199647,3.0,1637.0,1636.9,2.83697795]
[1693724203481,3.0,1637.0,1636.9,4.11866494]
[1693724206473,3.0,1637.0,1636.9,2.51545612]
[1693724207282,3.0,1637.0,1636.9,4.11866494]
[1693724207455,3.0,1637.0,1636.9,2.51545612]
[1693724209080,3.0,1637.0,1636.9,4.11866494]
[1693724209255,3.0,1637.0,1636.9,2.83697795]
[1693724209451,3.0,1637.0,1636.9,4.11795205]
[1693724214496,3.0,1637.0,1636.9,2.51474323]
[1693724214887,3.0,1637.0,1636.9,2.83697795]
[1693724216883,3.0,1637.0,1636.9,1.23376913]
[1693724217410,3.0,1637.0,1636.9,2.8338101]
[1693724223809,3.0,1637.0,1636.9,1.23376913]
[1693724228822,3.0,1637.0,1636.9,3.15761972]
[1693724229024,2.99184,1637.0,1636.9,3.15761972]
[1693724231823,2.9878,1637.0,1636.9,3.15761972]
[1693724246620,2.9878,1637.0,1636.9,1.23376913]
[1693724246942,2.9878,1637.0,1636.9,3.15656612]
[1693724259461,2.9878,1637.0,1636.9,1.23376913]
[1693724298315,2.9878,1637.0,1636.9,0.87217922]
[1693724298616,2.9878,1637.0,1636.9,2.47595012]
[1693724304419,4.5468,1637.0,1636.9,2.47595012]
[1693724304607,4.5468,1637.0,1636.9,3.75810018]
[1693724304996,4.5468,1637.0,1636.9,2.15432928]
[1693724308039,4.5468,1637.0,1636.9,3.11568485]
[1693724309342,4.5468,1637.0,1636.9,1.83353479]
[1693724323959,4.5468,1637.0,1636.9,1.83288805]
[1693724327027,2.9878,1637.0,1636.9,1.83288805]
[1693724330566,2.9878,1637.0,1636.9,3.58533462]
[1693724330759,2.9878,1637.0,1636.9,2.62462579]
[1693724330960,2.9878,1637.0,1636.9,2.62475531]
[1693724331271,2.9878,1637.0,1636.9,2.57475531]
[1693724333372,2.9878,1637.0,1636.9,4.17609859]
[1693724335442,2.9878,1637.0,1636.9,2.89502396]
[1693724343389,35.9983,1637.3,1636.9,1.29368068]
[1693724343563,5.4283,1637.3,1637.1,0.96169142]
[1693724344691,5.4283,1637.3,1637.2,0.00564593]
[1693724344874,11.58909728,1637.3,1637.2,0.00564593]
[1693724345661,11.58909728,1637.3,1637.1,0.96169142]
[1693724345881,5.4283,1637.3,1637.1,0.96169142]
[1693724346389,5.4283,1637.3,1637.2,0.70518326]
[1693724346567,11.58909129,1637.3,1637.1,0.96169142]
[1693724346771,5.4283,1637.3,1637.1,0.96169142]
[1693724348692,5.4283,1637.3,1637.2,0.00564593]
[1693724348888,11.58908549,1637.3,1637.2,0.00564593]
[1693724349060,11.58908591,1637.3,1637.2,0.00564593]
[1693724349583,11.58908591,1637.3,1637.1,0.96169142]
[1693724349771,5.4283,1637.3,1637.1,0.96169142]
[1693724350159,5.4283,1637.3,1637.2,0.70409576]
[1693724350364,11.58908833,1637.3,1637.1,0.96169142]
[1693724350577,5.4283,1637.3,1637.1,0.96169142]
[1693724350798,5.4283,1637.3,1637.2,0.70409576]
[1693724351206,7.71978695,1637.3,1637.1,0.96169142]
[1693724351371,1.559,1637.3,1637.1,0.96169142]
[1693724351567,1.559,1637.3,1637.2,0.70974169]
[1693724351769,1.559,1637.3,1637.2,0.00564593]
[1693724352069,7.71978454,1637.3,1637.2,0.00564593]
[1693724352487,10.71978454,1637.3,1637.2,0.00564593]
[1693724352667,10.71978454,1637.3,1637.1,0.96169142]
[1693724352871,4.559,1637.3,1637.1,0.96169142]
[1693724353271,4.559,1637.3,1637.2,0.70355201]
[1693724353473,10.7197881,1637.3,1637.2,0.70355201]
[1693724353766,10.7197881,1637.3,1637.1,0.96169142]
[1693724353967,4.559,1637.3,1637.1,0.96169142]
[1693724354383,4.559,1637.3,1637.2,0.70300826]
[1693724354585,10.71978942,1637.3,1637.2,0.00564593]
[1693724355606,10.71978942,1637.3,1637.1,0.96169142]
[1693724355773,4.559,1637.3,1637.1,0.96169142]
[1693724355975,4.559,1637.3,1637.2,0.70244456]
[1693724356173,10.71978968,1637.3,1637.2,0.70244456]
[1693724356376,10.71978968,1637.3,1637.1,0.96169142]
[1693724356597,4.559,1637.3,1637.1,0.96169142]
[1693724356798,4.559,1637.3,1637.2,0.70246451]
[1693724357107,10.71979414,1637.3,1637.1,0.96169142]
[1693724357309,4.559,1637.3,1637.1,0.96169142]
[1693724357607,4.559,1637.3,1637.2,0.70811044]
[1693724357807,10.71979413,1637.3,1637.2,0.70811044]
[1693724358107,10.71979413,1637.3,1637.2,0.00564593]
[1693724358507,10.71979413,1637.3,1637.1,0.96169142]
[1693724358688,4.559,1637.3,1637.1,0.96169142]
[1693724358888,4.559,1637.3,1637.2,0.70184098]
[1693724359089,10.71978687,1637.3,1637.1,0.96169142]
[1693724359409,4.559,1637.3,1637.1,0.96169142]
[1693724359571,4.559,1637.3,1637.2,0.7074814]
[1693724359772,10.71978552,1637.3,1637.2,0.00564042]
[1693724360608,10.71978552,1637.3,1637.1,0.96169142]
[1693724360909,4.559,1637.3,1637.2,0.70129723]
[1693724361113,10.71978552,1637.3,1637.2,0.70129723]
[1693724361411,10.71978552,1637.3,1637.1,0.96169142]
[1693724361607,4.559,1637.3,1637.2,0.70118371]
[1693724361905,10.71978584,1637.3,1637.2,0.70118371]
[1693724362212,10.71978584,1637.3,1637.1,0.96169142]
[1693724362507,4.559,1637.3,1637.1,0.96169142]
[1693724362712,4.559,1637.3,1637.2,0.70693765]
[1693724362912,10.71978662,1637.3,1637.2,0.70693765]
[1693724363213,10.71978662,1637.3,1637.2,0.00564042]
[1693724363615,10.71978662,1637.3,1637.1,0.96169142]
[1693724363778,4.559,1637.3,1637.1,0.96169142]
[1693724364111,4.559,1637.3,1637.2,0.70075348]
[1693724364307,10.71978821,1637.3,1637.2,0.70075348]
[1693724364511,10.71978821,1637.3,1637.1,0.96169142]
[1693724364715,4.559,1637.3,1637.2,0.70063996]
[1693724364879,10.71978559,1637.3,1637.2,0.70063996]
[1693724365080,10.71978559,1637.3,1637.1,0.96169142]
[1693724365301,4.559,1637.3,1637.1,0.96169142]
[1693724365509,4.559,1637.3,1637.2,0.70020973]
[1693724365717,10.71978866,1637.3,1637.2,0.70585015]
[1693724365894,10.71978866,1637.3,1637.2,0.00564042]
[1693724366511,10.71978866,1637.3,1637.1,0.96169142]
[1693724366721,4.559,1637.3,1637.1,0.96169142]
[1693724366916,4.559,1637.3,1637.2,0.70020973]
[1693724367114,10.71978167,1637.3,1637.2,0.70020973]
[1693724367319,10.71978167,1637.3,1637.1,0.96169142]
[1693724367620,4.559,1637.3,1637.2,0.70519288]
[1693724367786,10.71978155,1637.3,1637.2,0.70519288]
[1693724368120,10.71978155,1637.3,1637.2,0.00564042]
[1693724368513,10.71978155,1637.3,1637.1,0.96169142]
[1693724368821,4.559,1637.3,1637.1,0.96169142]
[1693724368986,4.559,1637.3,1637.2,0.69966598]
[1693724369186,10.71978553,1637.3,1637.2,0.69966598]
[1693724369387,10.71978553,1637.3,1637.1,0.96169142]
[1693724369610,4.559,1637.3,1637.2,0.69900871]
[1693724369814,10.71978283,1637.3,1637.2,0.69900871]
[1693724370026,10.71978283,1637.3,1637.1,0.96169142]
[1693724370213,4.559,1637.3,1637.1,0.96169142]
[1693724370414,4.559,1637.3,1637.2,0.69912223]
[1693724370725,10.71978581,1637.3,1637.2,0.00564042]
[1693724371625,10.71978581,1637.3,1637.1,2.24394665]
[1693724371825,4.559,1637.3,1637.1,2.24394665]
[1693724372123,4.559,1637.3,1637.2,0.69857848]
[1693724372322,10.71978004,1637.3,1637.2,0.69857848]
[1693724372524,10.71978004,1637.3,1637.1,2.24394665]
[1693724372727,4.559,1637.3,1637.1,2.24394665]
[1693724372895,4.559,1637.3,1637.2,0.69857848]
[1693724373091,10.7197794,1637.3,1637.2,0.69857848]
[1693724373290,10.7197794,1637.3,1637.1,2.24394665]
[1693724373497,4.559,1637.3,1637.2,0.70410538]
[1693724373703,10.7197818,1637.3,1637.2,0.70410538]
[1693724373991,10.7197818,1637.3,1637.2,0.00564042]
[1693724374486,10.7197818,1637.3,1637.1,2.24394665]
[1693724374691,4.559,1637.3,1637.1,2.24394665]
[1693724374938,4.559,1637.3,1637.2,0.69803473]
[1693724375217,10.71977847,1637.3,1637.2,1.65972615]
[1693724375421,10.71977847,1637.3,1637.2,0.96169142]
[1693724400811,10.71977847,1637.3,1637.2,1.28225523]
[1693724402649,10.71977847,1637.3,1637.2,1.60416817]
[1693724405449,9.16077847,1637.3,1637.2,1.60416817]
[1693724412182,9.65865467,1637.3,1637.2,1.60416817]
[1693724412662,10.57832977,1637.3,1637.2,1.60416817]
[1693724418685,10.57801356,1637.3,1637.2,1.60416817]
[1693724442014,12.13701356,1637.3,1637.2,1.60416817]
[1693724442232,13.53763492,1637.3,1637.2,1.60416817]
[1693724446474,16.61948896,1637.3,1637.2,1.28303162]
[1693724446677,17.09948896,1637.3,1637.2,1.28303162]
[1693724447011,17.09948896,1637.3,1637.2,2.88719979]
[1693724447605,17.09948896,1637.3,1637.2,1.28303162]
[1693724448188,17.09948896,1637.3,1637.2,2.88719979]
[1693724448591,17.09948896,1637.3,1637.2,1.28303162]
[1693724452812,16.17981386,1637.3,1637.2,1.28303162]
[1693724468037,16.17981386,1637.3,1637.2,0.99947717]
[1693724468755,16.18024706,1637.3,1637.2,0.99947717]
[1693724472255,16.18024708,1637.3,1637.2,0.99947717]
[1693724474156,16.18024708,1637.3,1637.2,2.60364534]
[1693724481517,16.18024708,1637.3,1637.2,1.60416817]
[1693724490149,14.77962572,1637.3,1637.2,1.60416817]
[1693724505383,14.77962572,1637.3,1637.2,1.60429113]
[1693724514469,14.77962572,1637.3,1637.1,1.92514936]
[1693724514674,6.16089548,1637.2,1637.1,1.92514936]
[1693724515602,6.16089548,1637.2,1637.1,1.93039278]
[1693724516306,6.16089548,1637.2,1637.1,2.34803282]
[1693724523816,6.16089548,1637.2,1637.1,2.87667012]
[1693724525425,6.16089548,1637.2,1637.1,2.87562893]
[1693724530121,6.16089548,1637.2,1637.1,2.45798889]
[1693724556558,6.16089548,1637.2,1637.1,0.53388072]
[1693724556763,6.16089548,1637.2,1637.1,1.92950514]
[1693724557128,6.16089548,1637.2,1637.1,2.42474517]
[1693724560161,7.71989548,1637.2,1637.1,2.42474517]
[1693724567077,7.71984296,1637.2,1637.1,2.42474517]
[1693724572766,7.71984296,1637.2,1637.1,2.42486799]
[1693724598329,7.71984296,1637.2,1637.1,0.50048345]
[1693724601626,7.71984296,1637.2,1637.1,2.42486799]
[1693724603034,7.71994215,1637.2,1637.1,2.42486799]
[1693724605131,7.71994215,1637.2,1637.1,1.92962796]
[1693724605631,8.19994215,1637.2,1637.1,1.92438454]
[1693724608463,8.19994215,1637.2,1637.1,2.39044589]
[1693724608652,8.19994215,1637.2,1637.1,1.92438454]
[1693724612321,8.19994215,1637.2,1637.0,1.92438454]
[1693724612522,6.16094215,1637.1,1637.0,1.92438454]
[1693724613747,6.16094215,1637.1,1637.0,1.929635]
[1693724613924,6.16094215,1637.1,1637.0,2.39580853]
[1693724619866,6.16121046,1637.1,1637.0,2.39580853]
[1693724621875,6.16121046,1637.1,1637.0,2.39579633]
[1693724623443,6.1612189,1637.1,1637.0,2.39579633]
[1693724630277,6.1612189,1637.1,1637.0,2.43371533]
[1693724638402,6.1612189,1637.1,1637.0,2.11297371]